fUSD/lending_fUSD_20250930
["ID","MTS","AMOUNT","RATE_DAILY","PERIOD"]
[388571164,1759243904242,-3621.53,0.00019726,2]
[388571165,1759243904252,-183.356382,0.00019726,2]
[388571166,1759243904261,-2533.68,0.00019726,2]
[388571167,1759243904271,-1725.05,0.00019726,2]
[388571168,1759243904283,-3013.89,0.00019726,2]
[388571169,1759243904292,-804.58,0.00019726,2]
[388571170,1759243904302,-500.0,0.00019726,2]
[388571171,1759243904311,-500.0,0.00019726,2]
[388571172,1759243904321,-857.920883,0.00019726,2]
[388571173,1759243904331,-857.920883,0.00019726,2]
[388571174,1759243904342,-335.41954383,0.00019726,2]
[388571175,1759243904352,-500.0,0.00019726,2]
[388571176,1759243904362,-1914.69,0.00019726,2]
[388571177,1759243904372,-857.920883,0.00019726,2]
[388571178,1759243904382,-500.0,0.00019726,2]
[388571179,1759243904392,-857.920883,0.00019726,2]
[388571180,1759243904402,-500.0,0.00019726,2]
[388571181,1759243904411,-500.0,0.00019726,2]
[388571182,1759243904421,-152.135929,0.00019726,2]
[388571183,1759243904430,-152.135929,0.00019726,2]
[388571184,1759243904439,-152.135929,0.00019726,2]
[388571185,1759243904449,-857.920883,0.00019726,2]
[388571186,1759243904459,-152.135929,0.00019726,2]
[388571187,1759243904468,-857.920883,0.00019726,2]
[388571188,1759243904478,-1896.37,0.00019726,2]
[388571189,1759243904488,-859.8,0.00019726,2]
[388571190,1759243904499,-545.75156802,0.00019726,2]
[388571191,1759243904509,-1627.92,0.00019726,2]
[388571192,1759243904520,-206.530796,0.00019726,2]
[388571193,1759243904531,-857.920883,0.00019726,2]
[388571194,1759243904541,-4288.38,0.00019726,2]
[388571195,1759243904552,-152.135929,0.00019726,2]
[388571196,1759243904561,-857.920883,0.00019726,2]
[388571197,1759243904571,-500.0,0.00019726,2]
[388571198,1759243904581,-152.135929,0.00019726,2]
[388571199,1759243904591,-517.49114458,0.00019726,2]
[388571200,1759243904601,-206.530796,0.00019726,2]
[388571201,1759243904611,-500.0,0.00019726,2]
[388571202,1759243904621,-152.135929,0.00019726,2]
[388571203,1759243904631,-500.0,0.00019726,2]
[388571204,1759243904641,-152.135929,0.00019726,2]
[388571205,1759243904651,-4489.31,0.00019726,2]
[388571206,1759243904660,-206.530796,0.00019726,2]
[388571207,1759243904670,-206.530796,0.00019726,2]
[388571208,1759243904680,-2042.97,0.00019726,2]
[388571209,1759243904690,-206.530796,0.00019726,2]
[388571210,1759243904699,-206.530796,0.00019726,2]
[388571211,1759243904709,-151.0,0.00019726,2]
[388571212,1759243904719,-500.0,0.00019726,2]
[388571213,1759243904729,-151.0,0.00019726,2]
[388571214,1759243904738,-206.530796,0.00019726,2]
[388571215,1759243904748,-948.57,0.00019726,2]
[388571216,1759243904757,-206.530796,0.00019726,2]
[388571217,1759243904767,-151.0,0.00019726,2]
[388571218,1759243904778,-151.0,0.00019726,2]
[388571219,1759243904787,-3509.0,0.00019726,2]
[388571220,1759243904797,-1043.98,0.00019726,2]
[388571221,1759243904807,-189.738354,0.00019726,2]
[388571222,1759243904817,-1002.99,0.00019726,2]
[388571223,1759243904828,-500.0,0.00019726,2]
[388571224,1759243904838,-3298.82,0.00019726,2]
[388571225,1759243904849,-1877.95,0.00019726,2]
[388571226,1759243904861,-500.0,0.00019726,2]
[388571227,1759243904872,-575.92,0.00019726,2]
[388571228,1759243904882,-595.256096,0.00019726,2]
[388571229,1759243904892,-2949.36,0.00019726,2]
[388571230,1759243904901,-595.256096,0.00019726,2]
[388571231,1759243904910,-4003.15,0.00019726,2]
[388571232,1759243904922,-500.0,0.00019726,2]
[388571233,1759243904931,-504.58,0.00019726,2]
[388571234,1759243904940,-500.0,0.00019726,2]
[388571235,1759243904949,-595.256096,0.00019726,2]
[388571236,1759243904959,-2276.63,0.00019726,2]
[388571237,1759243904968,-595.256096,0.00019726,2]
[388571238,1759243904977,-500.0,0.00019726,2]
[388571239,1759243904987,-500.0,0.00019726,2]
[388571240,1759243904996,-500.0,0.00019726,2]
[388571241,1759243905005,-595.256096,0.00019726,2]
[388571242,1759243905014,-595.256096,0.00019726,2]
[388571243,1759243905024,-500.0,0.00019726,2]
[388571244,1759243905034,-595.256096,0.00019726,2]
[388571245,1759243905049,-595.256096,0.00019726,2]
[388571246,1759243905059,-500.0,0.00019726,2]
[388571247,1759243905071,-551.58,0.00019726,2]
[388571248,1759243905080,-4326.28,0.00019726,2]
[388571249,1759243905091,-4579.72,0.00019726,2]
[388571250,1759243905101,-500.0,0.00019726,2]
[388571251,1759243905110,-500.0,0.00019726,2]
[388571252,1759243905119,-500.0,0.00019726,2]
[388571253,1759243905129,-4667.32,0.00019726,2]
[388571254,1759243905138,-2121.11,0.00019726,2]
[388571255,1759243905147,-151.0,0.00019726,2]
[388571256,1759243905156,-151.0,0.00019726,2]
[388571257,1759243905165,-659.75,0.00019726,2]
[388571258,1759243905175,-500.0,0.00019726,2]
[388571259,1759243905184,-151.0,0.00019726,2]
[388571260,1759243905192,-500.0,0.00019726,2]
[388571261,1759243905201,-722.87,0.00019726,2]
[388571262,1759243905210,-151.0,0.00019726,2]
[388571263,1759243905219,-5020.85,0.00019726,2]
[388571264,1759243905228,-692.75,0.00019726,2]
[388571265,1759243905237,-1899.13,0.00019726,2]
[388571266,1759243905247,-209.720399,0.00019726,2]
[388571267,1759243905256,-3031.79,0.00019726,2]
[388571268,1759243905265,-500.0,0.00019726,2]
[388571269,1759243905274,-532.98,0.00019726,2]
[388571270,1759243905284,-1124.83,0.00019726,2]
[388571271,1759243905293,-1756.01,0.00019726,2]
[388571272,1759243905302,-715.28,0.00019726,2]
[388571273,1759243905312,-5421.88,0.00019726,2]
[388571274,1759243905321,-500.0,0.00019726,2]
[388571275,1759243905331,-500.0,0.00019726,2]
[388571276,1759243905340,-500.0,0.00019726,2]
[388571277,1759243905350,-248.082918,0.00019726,2]
[388571278,1759243905358,-248.082918,0.00019726,2]
[388571279,1759243905367,-248.082918,0.00019726,2]
[388571280,1759243905377,-4640.6,0.00019726,2]
[388571281,1759243905385,-248.082918,0.00019726,2]
[388571282,1759243905395,-2742.48,0.00019726,2]
[388571283,1759243905404,-248.082918,0.00019726,2]
[388571284,1759243905414,-248.082918,0.00019726,2]
[388571285,1759243905423,-500.0,0.00019726,2]
[388571286,1759243905432,-500.0,0.00019726,2]
[388571287,1759243905442,-500.0,0.00019726,2]
[388571288,1759243905451,-3900.26,0.00019726,2]
[388571289,1759243905460,-248.082918,0.00019726,2]
[388571290,1759243905469,-248.082918,0.00019726,2]
[388571291,1759243905478,-4877.04,0.00019726,2]
[388571292,1759243905487,-523.26,0.00019726,2]
[388571293,1759243905495,-3168.12,0.00019726,2]
[388571294,1759243905505,-500.0,0.00019726,2]
[388571295,1759243905513,-500.0,0.00019726,2]
[388571296,1759243905522,-560.42,0.00019726,2]
[388571297,1759243905532,-1903.48,0.00019726,2]
[388571298,1759243905541,-2521.38,0.00019726,2]
[388571299,1759243905550,-500.0,0.00019726,2]
[388571300,1759243905559,-2806.65,0.00019726,2]
[388571301,1759243905568,-500.0,0.00019726,2]
[388571302,1759243905578,-151.0,0.00019726,2]
[388571303,1759243905587,-151.0,0.00019726,2]
[388571304,1759243905596,-883.02,0.00019726,2]
[388571305,1759243905605,-500.0,0.00019726,2]
[388571306,1759243905615,-3713.1,0.00019726,2]
[388571307,1759243905624,-151.0,0.00019726,2]
[388571308,1759243905634,-2506.86,0.00019726,2]
[388571309,1759243905644,-151.0,0.00019726,2]
[388571310,1759243905653,-825.96,0.00019726,2]
[388571311,1759243905662,-751.89,0.00019726,2]
[388571312,1759243905671,-500.0,0.00019726,2]
[388571313,1759243905681,-604.76,0.00019726,2]
[388571314,1759243905691,-500.0,0.00019726,2]
[388571315,1759243905700,-4055.75,0.00019726,2]
[388571316,1759243905709,-1918.23,0.00019726,2]
[388571317,1759243905718,-3017.79,0.00019726,2]
[388571318,1759243905727,-872.23,0.00019726,2]
[388571319,1759243905736,-500.0,0.00019726,2]
[388571320,1759243905746,-151.0,0.00019726,2]
[388571321,1759243905755,-151.0,0.00019726,2]
[388571322,1759243905764,-500.0,0.00019726,2]
[388571323,1759243905773,-500.0,0.00019726,2]
[388571324,1759243905783,-151.0,0.00019726,2]
[388571325,1759243905792,-176.514806,0.00019726,2]
[388571326,1759243905802,-500.0,0.00019726,2]
[388571327,1759243905811,-151.0,0.00019726,2]
[388571328,1759243905820,-151.0,0.00019726,2]
[388571329,1759243905829,-552.2,0.00019726,2]
[388571330,1759243905838,-151.0,0.00019726,2]
[388571331,1759243905847,-2034.94,0.00019726,2]
[388571332,1759243905857,-151.0,0.00019726,2]
[388571333,1759243905866,-922.96,0.00019726,2]
[388571334,1759243905875,-500.0,0.00019726,2]
[388571335,1759243905884,-500.0,0.00019726,2]
[388571336,1759243905894,-1339.37,0.00019726,2]
[388571337,1759243905903,-151.0,0.00019726,2]
[388571338,1759243905912,-500.0,0.00019726,2]
[388571339,1759243905921,-500.0,0.00019726,2]
[388571340,1759243905930,-151.0,0.00019726,2]
[388571341,1759243905939,-151.0,0.00019726,2]
[388571342,1759243905948,-185.258496,0.00019726,2]
[388571343,1759243905957,-818.91,0.00019726,2]
[388571344,1759243905967,-500.0,0.00019726,2]
[388571345,1759243905976,-3132.31,0.00019726,2]
[388571346,1759243905986,-311.809884,0.00019726,2]
[388571347,1759243905995,-311.809884,0.00019726,2]
[388571348,1759243906004,-500.0,0.00019726,2]
[388571349,1759243906013,-3246.07,0.00019726,2]
[388571350,1759243906022,-311.809884,0.00019726,2]
[388571351,1759243906032,-311.809884,0.00019726,2]
[388571352,1759243906042,-500.0,0.00019726,2]
[388571353,1759243906056,-500.0,0.00019726,2]
[388571354,1759243906066,-2473.07,0.00019726,2]
[388571355,1759243906076,-311.809884,0.00019726,2]
[388571356,1759243906089,-311.809884,0.00019726,2]
[388571357,1759243906099,-3870.52,0.00019726,2]
[388571358,1759243906108,-311.809884,0.00019726,2]
[388571359,1759243906117,-500.0,0.00019726,2]
[388571360,1759243906127,-311.809884,0.00019726,2]
[388571361,1759243906137,-500.0,0.00019726,2]
[388571362,1759243906146,-1087.57,0.00019726,2]
[388571363,1759243906155,-500.0,0.00019726,2]
[388571364,1759243906164,-177.377123,0.00019726,2]
[388571365,1759243906176,-4139.96,0.00019726,2]
[388571366,1759243906185,-1767.54,0.00019726,2]
[388571367,1759243906194,-500.0,0.00019726,2]
[388571368,1759243906203,-500.0,0.00019726,2]
[388571369,1759243906212,-189.657851,0.00019726,2]
[388571370,1759243906221,-500.0,0.00019726,2]
[388571371,1759243906231,-3201.03,0.00019726,2]
[388571372,1759243906240,-500.0,0.00019726,2]
[388571373,1759243906249,-189.657851,0.00019726,2]
[388571374,1759243906258,-2034.42,0.00019726,2]
[388571375,1759243906270,-189.657851,0.00019726,2]
[388571376,1759243906283,-500.0,0.00019726,2]
[388571377,1759243906293,-189.657851,0.00019726,2]
[388571378,1759243906303,-189.657851,0.00019726,2]
[388571379,1759243906312,-958.22,0.00019726,2]
[388571380,1759243906323,-500.0,0.00019726,2]
[388571381,1759243906334,-189.657851,0.00019726,2]
[388571382,1759243906344,-500.0,0.00019726,2]
[388571383,1759243906353,-500.0,0.00019726,2]
[388571384,1759243906363,-189.657851,0.00019726,2]
[388571385,1759243906372,-177.377123,0.00019726,2]
[388571386,1759243906383,-189.657851,0.00019726,2]
[388571387,1759243906393,-2548.08,0.00019726,2]
[388571388,1759243906404,-513.462665,0.00019726,2]
[388571389,1759243906415,-500.0,0.00019726,2]
[388571390,1759243906425,-500.0,0.00019726,2]
[388571391,1759243906437,-513.462665,0.00019726,2]
[388571392,1759243906447,-177.377123,0.00019726,2]
[388571393,1759243906456,-177.377123,0.00019726,2]
[388571394,1759243906467,-4492.44,0.00019726,2]
[388571395,1759243906476,-2151.04,0.00019726,2]
[388571396,1759243906485,-513.462665,0.00019726,2]
[388571397,1759243906495,-500.0,0.00019726,2]
[388571398,1759243906504,-513.462665,0.00019726,2]
[388571399,1759243906513,-177.377123,0.00019726,2]
[388571400,1759243906523,-500.0,0.00019726,2]
[388571401,1759243906534,-177.377123,0.00019726,2]
[388571402,1759243906543,-513.462665,0.00019726,2]
[388571403,1759243906552,-4031.72,0.00019726,2]
[388571404,1759243906563,-513.462665,0.00019726,2]
[388571405,1759243906572,-177.377123,0.00019726,2]
[388571406,1759243906582,-500.0,0.00019726,2]
[388571407,1759243906591,-177.377123,0.00019726,2]
[388571408,1759243906600,-2964.53,0.00019726,2]
[388571409,1759243906609,-151.0,0.00019726,2]
[388571410,1759243906618,-500.0,0.00019726,2]
[388571411,1759243906628,-151.0,0.00019726,2]
[388571412,1759243906637,-500.0,0.00019726,2]
[388571413,1759243906647,-500.0,0.00019726,2]
[388571414,1759243906656,-513.462665,0.00019726,2]
[388571415,1759243906665,-513.462665,0.00019726,2]
[388571416,1759243906675,-500.0,0.00019726,2]
[388571417,1759243906684,-500.0,0.00019726,2]
[388571418,1759243906695,-500.0,0.00019726,2]
[388571419,1759243906705,-3292.9,0.00019726,2]
[388571420,1759243906715,-439.964211,0.00019726,2]
[388571421,1759243906725,-439.964211,0.00019726,2]
[388571422,1759243906734,-156.40945186,0.00019726,2]
[388571423,1759243906745,-526.92,0.00019726,2]
[388571424,1759243906755,-3324.17,0.00019726,2]
[388571425,1759243906764,-500.0,0.00019726,2]
[388571426,1759243906774,-439.964211,0.00019726,2]
[388571427,1759243906784,-439.964211,0.00019726,2]
[388571428,1759243906794,-732.56,0.00019726,2]
[388571429,1759243906935,-2821.85,0.00019726,2]
[388571430,1759243906946,-439.964211,0.00019726,2]
[388571431,1759243906957,-1184.74,0.00019726,2]
[388571432,1759243906967,-898.43,0.00019726,2]
[388571433,1759243906977,-439.964211,0.00019726,2]
[388571434,1759243906987,-583.0,0.00019726,2]
[388571435,1759243906996,-500.0,0.00019726,2]
[388571436,1759243907007,-151.374353,0.00019726,2]
[388571437,1759243907016,-500.0,0.00019726,2]
[388571438,1759243907025,-661.02,0.00019726,2]
[388571439,1759243907038,-439.964211,0.00019726,2]
[388571440,1759243907049,-439.964211,0.00019726,2]
[388571441,1759243907059,-500.0,0.00019726,2]
[388571442,1759243907068,-2560.34,0.00019726,2]
[388571443,1759243907077,-257.963977,0.00019726,2]
[388571444,1759243907087,-2046.99,0.00019726,2]
[388571445,1759243907097,-257.963977,0.00019726,2]
[388571446,1759243907106,-500.0,0.00019726,2]
[388571447,1759243907116,-257.963977,0.00019726,2]
[388571448,1759243907125,-4624.82,0.00019726,2]
[388571449,1759243907134,-257.963977,0.00019726,2]
[388571450,1759243907143,-500.0,0.00019726,2]
[388571451,1759243907153,-3466.53,0.00019726,2]
[388571452,1759243907162,-500.0,0.00019726,2]
[388571453,1759243907171,-257.963977,0.00019726,2]
[388571454,1759243907180,-257.963977,0.00019726,2]
[388571455,1759243907189,-251.986327,0.00019726,2]
[388571456,1759243907199,-251.986327,0.00019726,2]
[388571457,1759243907208,-257.963977,0.00019726,2]
[388571458,1759243907217,-3105.83,0.00019726,2]
[388571459,1759243907228,-939.33,0.00019726,2]
[388571460,1759243907238,-257.963977,0.00019726,2]
[388571461,1759243907251,-251.986327,0.00019726,2]
[388571462,1759243907260,-500.0,0.00019726,2]
[388571463,1759243907270,-251.986327,0.00019726,2]
[388571464,1759243907279,-510.35189298,0.00019726,2]
[388571465,1759243907292,-500.0,0.00019726,2]
[388571466,1759243907301,-251.986327,0.00019726,2]
[388571467,1759243907311,-251.986327,0.00019726,2]
[388571468,1759243907321,-1068.303714,0.00019726,2]
[388571469,1759243907331,-251.986327,0.00019726,2]
[388571470,1759243907341,-1068.303714,0.00019726,2]
[388571471,1759243907350,-500.0,0.00019726,2]
[388571472,1759243907360,-251.986327,0.00019726,2]
[388571473,1759243907370,-1068.303714,0.00019726,2]
[388571474,1759243907380,-500.0,0.00019726,2]
[388571475,1759243907391,-1068.303714,0.00019726,2]
[388571476,1759243907401,-3601.0,0.00019726,2]
[388571477,1759243907412,-1068.303714,0.00019726,2]
[388571478,1759243907423,-500.0,0.00019726,2]
[388571479,1759243907433,-1068.303714,0.00019726,2]
[388571480,1759243907444,-1398.89,0.00019726,2]
[388571481,1759243907456,-154.056326,0.00019726,2]
[388571482,1759243907466,-930.23,0.00019726,2]
[388571483,1759243907476,-906.86,0.00019726,2]
[388571484,1759243907485,-1068.303714,0.00019726,2]
[388571485,1759243907496,-500.0,0.00019726,2]
[388571486,1759243907507,-1068.303714,0.00019726,2]
[388571487,1759243907517,-500.0,0.00019726,2]
[388571488,1759243907527,-500.0,0.00019726,2]
[388571489,1759243907539,-282.888,0.00019726,2]
[388571490,1759243907548,-282.888,0.00019726,2]
[388571491,1759243907559,-649.78,0.00019726,2]
[388571492,1759243907568,-500.0,0.00019726,2]
[388571493,1759243907579,-282.888,0.00019726,2]
[388571494,1759243907590,-4407.74,0.00019726,2]
[388571495,1759243907600,-282.888,0.00019726,2]
[388571496,1759243907610,-500.0,0.00019726,2]
[388571497,1759243907621,-151.0,0.00019726,2]
[388571498,1759243907631,-282.888,0.00019726,2]
[388571499,1759243907640,-1299.41,0.00019726,2]
[388571500,1759243907650,-151.0,0.00019726,2]
[388571501,1759243907659,-282.888,0.00019726,2]
[388571502,1759243907669,-297.95607191,0.00019726,2]
[388571503,1759243907679,-282.888,0.00019726,2]
[388571504,1759243907689,-282.888,0.00019726,2]
[388571505,1759243907698,-314.08,0.00019726,2]
[388571506,1759243907708,-2792.33,0.00019726,2]
[388571507,1759243907718,-5083.1,0.00019726,2]
[388571508,1759243907728,-1121.19,0.00019726,2]
[388571509,1759243907737,-1700.17,0.00019726,2]
[388571510,1759243907747,-523.6,0.00019726,2]
[388571511,1759243907757,-5296.49,0.00019726,2]
[388571512,1759243907767,-1879.37,0.00019726,2]
[388571513,1759243907776,-500.0,0.00019726,2]
[388571514,1759243907786,-1096.67,0.00019726,2]
[388571515,1759243907796,-151.0,0.00019726,2]
[388571516,1759243907806,-151.0,0.00019726,2]
[388571517,1759243907816,-3571.88,0.00019726,2]
[388571518,1759243907826,-881.11,0.00019726,2]
[388571519,1759243907835,-151.0,0.00019726,2]
[388571520,1759243907844,-151.0,0.00019726,2]
[388571521,1759243907855,-500.0,0.00019726,2]
[388571522,1759243907864,-151.0,0.00019726,2]
[388571523,1759243907874,-151.0,0.00019726,2]
[388571524,1759243907883,-3884.01,0.00019726,2]
[388571525,1759243907893,-500.0,0.00019726,2]
[388571526,1759243907903,-500.0,0.00019726,2]
[388571527,1759243907913,-500.0,0.00019726,2]
[388571528,1759243907922,-1064.22,0.00019726,2]
[388571529,1759243907932,-1400.372464,0.00019726,2]
[388571530,1759243907941,-1400.372464,0.00019726,2]
[388571531,1759243907950,-710.39,0.00019726,2]
[388571532,1759243907960,-151.0,0.00019726,2]
[388571533,1759243907970,-167.572792,0.00019726,2]
[388571534,1759243907979,-1108.16,0.00019726,2]
[388571535,1759243907988,-1400.372464,0.00019726,2]
[388571536,1759243907998,-1400.372464,0.00019726,2]
[388571537,1759243908007,-500.0,0.00019726,2]
[388571538,1759243908016,-3363.37,0.00019726,2]
[388571539,1759243908026,-1400.372464,0.00019726,2]
[388571540,1759243908036,-1400.372464,0.00019726,2]
[388571541,1759243908048,-500.0,0.00019726,2]
[388571542,1759243908057,-2843.26,0.00019726,2]
[388571543,1759243908067,-1400.372464,0.00019726,2]
[388571544,1759243908076,-1400.372464,0.00019726,2]
[388571545,1759243908085,-500.0,0.00019726,2]
[388571546,1759243908094,-3512.3,0.00019726,2]
[388571547,1759243908105,-500.0,0.00019726,2]
[388571548,1759243908115,-152.37199,0.00019726,2]
[388571549,1759243908124,-500.0,0.00019726,2]
[388571550,1759243908135,-151.0,0.00019726,2]
[388571551,1759243908144,-151.0,0.00019726,2]
[388571552,1759243908153,-7679.82,0.00019726,2]
[388571553,1759243908163,-1542.41,0.00019726,2]
[388571554,1759243908172,-151.0,0.00019726,2]
[388571555,1759243908181,-500.0,0.00019726,2]
[388571556,1759243908190,-879.12,0.00019726,2]
[388571557,1759243908201,-151.0,0.00019726,2]
[388571558,1759243908210,-547.83,0.00019726,2]
[388571559,1759243908220,-608.6,0.00019726,2]
[388571560,1759243908230,-500.0,0.00019726,2]
[388571561,1759243908239,-151.0,0.00019726,2]
[388571562,1759243908248,-151.0,0.00019726,2]
[388571563,1759243908257,-938.56,0.00019726,2]
[388571564,1759243908267,-500.0,0.00019726,2]
[388571565,1759243908276,-4927.14,0.00019726,2]
[388571566,1759243908285,-288.948147,0.00019726,2]
[388571567,1759243908295,-1089.86,0.00019726,2]
[388571568,1759243908305,-829.99,0.00019726,2]
[388571569,1759243908314,-989.47,0.00019726,2]
[388571570,1759243908324,-500.0,0.00019726,2]
[388571571,1759243908334,-165.023911,0.00019726,2]
[388571572,1759243908344,-697.53,0.00019726,2]
[388571573,1759243908353,-165.023911,0.00019726,2]
[388571574,1759243908362,-860.26,0.00019726,2]
[388571575,1759243908371,-165.023911,0.00019726,2]
[388571576,1759243908380,-500.0,0.00019726,2]
[388571577,1759243908389,-165.023911,0.00019726,2]
[388571578,1759243908398,-151.0,0.00019726,2]
[388571579,1759243908407,-500.0,0.00019726,2]
[388571580,1759243908416,-151.0,0.00019726,2]
[388571581,1759243908425,-165.023911,0.00019726,2]
[388571582,1759243908435,-500.0,0.00019726,2]
[388571583,1759243908444,-165.023911,0.00019726,2]
[388571584,1759243908454,-500.0,0.00019726,2]
[388571585,1759243908463,-165.023911,0.00019726,2]
[388571586,1759243908472,-165.023911,0.00019726,2]
[388571587,1759243908482,-610.56,0.00019726,2]
[388571588,1759243908491,-500.0,0.00019726,2]
[388571589,1759243908501,-446.91374,0.00019726,2]
[388571590,1759243908511,-559.906261,0.00019726,2]
[388571591,1759243908521,-4000.09,0.00019726,2]
[388571592,1759243908530,-446.91374,0.00019726,2]
[388571593,1759243908540,-2610.4,0.00019726,2]
[388571594,1759243908550,-559.906261,0.00019726,2]
[388571595,1759243908559,-151.0,0.00019726,2]
[388571596,1759243908568,-151.0,0.00019726,2]
[388571597,1759243908578,-559.906261,0.00019726,2]
[388571598,1759243908587,-559.906261,0.00019726,2]
[388571599,1759243908597,-446.91374,0.00019726,2]
[388571600,1759243908607,-500.0,0.00019726,2]
[388571601,1759243908616,-446.91374,0.00019726,2]
[388571602,1759243908626,-151.0,0.00019726,2]
[388571603,1759243908637,-151.0,0.00019726,2]
[388571604,1759243908647,-500.0,0.00019726,2]
[388571605,1759243908657,-151.0,0.00019726,2]
[388571606,1759243908667,-2315.21,0.00019726,2]
[388571607,1759243908676,-712.94,0.00019726,2]
[388571608,1759243908686,-151.0,0.00019726,2]
[388571609,1759243908696,-635.26,0.00019726,2]
[388571610,1759243908706,-446.91374,0.00019726,2]
[388571611,1759243908716,-1241.84,0.00019726,2]
[388571612,1759243908725,-559.906261,0.00019726,2]
[388571613,1759243908735,-446.91374,0.00019726,2]
[388571614,1759243908745,-559.906261,0.00019726,2]
[388571615,1759243908755,-151.0,0.00019726,2]
[388571616,1759243908764,-4635.08,0.00019726,2]
[388571617,1759243908775,-151.0,0.00019726,2]
[388571618,1759243908784,-151.0,0.00019726,2]
[388571619,1759243908794,-559.906261,0.00019726,2]
[388571620,1759243908803,-446.91374,0.00019726,2]
[388571621,1759243908813,-559.906261,0.00019726,2]
[388571622,1759243908823,-500.0,0.00019726,2]
[388571623,1759243908832,-446.91374,0.00019726,2]
[388571624,1759243908842,-151.0,0.00019726,2]
[388571625,1759243908851,-500.0,0.00019726,2]
[388571626,1759243908861,-500.0,0.00019726,2]
[388571627,1759243908871,-151.0,0.00019726,2]
[388571628,1759243908880,-151.0,0.00019726,2]
[388571629,1759243908890,-151.0,0.00019726,2]
[388571630,1759243908900,-151.0,0.00019726,2]
[388571631,1759243908910,-935.379173,0.00019726,2]
[388571632,1759243908920,-151.0,0.00019726,2]
[388571633,1759243908930,-935.379173,0.00019726,2]
[388571634,1759243908940,-151.0,0.00019726,2]
[388571635,1759243908949,-234.48412,0.00019726,2]
[388571636,1759243908960,-1008.121938,0.00019726,2]
[388571637,1759243908969,-500.0,0.00019726,2]
[388571638,1759243908978,-230.366618,0.00019726,2]
[388571639,1759243908988,-3545.03,0.00019726,2]
[388571640,1759243908998,-500.0,0.00019726,2]
[388571641,1759243909008,-935.379173,0.00019726,2]
[388571642,1759243909017,-1008.121938,0.00019726,2]
[388571643,1759243909027,-935.379173,0.00019726,2]
[388571644,1759243909037,-935.379173,0.00019726,2]
[388571645,1759243909052,-166.037285,0.00019726,2]
[388571646,1759243909433,-3941.09,0.00019726,2]
[388571647,1759243909445,-500.0,0.00019726,2]
[388571648,1759243909456,-935.379173,0.00019726,2]
[388571649,1759243909466,-672.26,0.00019726,2]
[388571650,1759243909475,-5219.82,0.00019726,2]
[388571651,1759243909484,-977.35,0.00019726,2]
[388571652,1759243909494,-1194.79,0.00019726,2]
[388571653,1759243909504,-500.0,0.00019726,2]
[388571654,1759243909514,-2138.48,0.00019726,2]
[388571655,1759243909523,-500.0,0.00019726,2]
[388571656,1759243909533,-2228.78,0.00019726,2]
[388571657,1759243909544,-4201.08,0.00019726,2]
[388571658,1759243909553,-925.67,0.00019726,2]
[388571659,1759243909563,-500.19,0.00019726,2]
[388571660,1759243909573,-500.0,0.00019726,2]
[388571661,1759243909583,-1934.01,0.00019726,2]
[388571662,1759243909592,-500.0,0.00019726,2]
[388571663,1759243909603,-500.0,0.00019726,2]